bitfinex/quotes_BTCUSD_20251012
["timestamp","ask_amount","ask_price","bid_price","bid_amount"]
[1760299343423,0.04959584,114900.0,114890.0,0.17407955]
[1760299343623,1e-08,114900.0,114890.0,0.33549907]
[1760299343877,0.000517,114910.0,114900.0,0.1740644]
[1760299344081,0.000517,114910.0,114900.0,0.2239544]
[1760299344255,0.000517,114910.0,114900.0,0.33548392]
[1760299345249,0.02189446,114930.0,114920.0,0.17403411]
[1760299345448,0.02189446,114930.0,114920.0,0.33545363]
[1760299346976,0.02189446,114930.0,114920.0,0.33645363]
[1760299347155,0.02998953,114930.0,114920.0,0.33645363]
[1760299347386,0.03446137,114930.0,114920.0,0.33645363]
[1760299349250,0.0263663,114930.0,114920.0,0.33645363]
[1760299349480,1.08,114950.0,114920.0,0.88004302]
[1760299349690,1.08824436,114950.0,114940.0,0.19382382]
[1760299349831,1.08824436,114950.0,114940.0,0.35172334]
[1760299350034,1.08824436,114950.0,114940.0,0.39157334]
[1760299350949,1.63183375,114950.0,114940.0,0.26219382]
[1760299351184,1.08824436,114950.0,114940.0,0.26219382]
[1760299351399,1.03256476,114950.0,114940.0,0.39157334]
[1760299351606,1.04065641,114950.0,114940.0,0.39157334]
[1760299352036,0.05069366,114950.0,114940.0,0.99031462]
[1760299352295,0.00863168,114950.0,114940.0,0.96016272]
[1760299352534,0.00863168,114950.0,114940.0,0.96116272]
[1760299352971,0.00863168,114950.0,114940.0,0.96016272]
[1760299353184,0.0219645,114970.0,114960.0,0.17397355]
[1760299353398,0.0219645,114970.0,114960.0,0.83773246]
[1760299354087,0.0219645,114970.0,114960.0,0.29414307]
[1760299354291,0.0219645,114970.0,114960.0,0.83773246]
[1760299354695,0.0219645,114970.0,114960.0,0.83873246]
[1760299355317,5.17058835,115000.0,114980.0,0.19894328]
[1760299355520,5.17073663,115000.0,114990.0,0.26345768]
[1760299355921,5.17464575,115000.0,114990.0,0.26345768]
[1760299357513,5.17464575,115000.0,114990.0,0.26445768]
[1760299357710,5.17464575,115000.0,114990.0,0.26345768]
[1760299358551,5.17464575,115000.0,114990.0,0.26445768]
[1760299358734,4.46459719,115000.0,114990.0,0.80804707]
[1760299358933,3.60561703,115000.0,114990.0,0.86319896]
[1760299359159,3.25856421,115000.0,114990.0,0.86419896]
[1760299359378,3.19834078,115000.0,114990.0,0.86419896]
[1760299359696,2.87516328,115000.0,114990.0,0.86419896]
[1760299360110,2.63911864,115000.0,114990.0,0.86419896]
[1760299360311,2.35408932,115000.0,114990.0,0.86419896]
[1760299360870,1.8427609,115000.0,114990.0,0.86419896]
[1760299361141,1.8427609,115000.0,114990.0,0.32060957]
[1760299361142,1.6242787,115000.0,114990.0,0.32060957]
[1760299361335,1.51870312,115000.0,114990.0,0.86419896]
[1760299361546,1.35179638,115000.0,114990.0,0.86419896]
[1760299361720,1.35179638,115000.0,114990.0,0.32060957]
[1760299361721,1.28091898,115000.0,114990.0,0.32060957]
[1760299361923,1.28091898,115000.0,114990.0,0.86419896]
[1760299361924,1.10231499,115000.0,114990.0,0.86419896]
[1760299362241,1.00219766,115000.0,114990.0,0.86419896]
[1760299362643,1.00219766,115000.0,114990.0,0.26545768]
[1760299363111,1.42795766,115000.0,114990.0,0.17592816]
[1760299363561,1.42795766,115000.0,114990.0,0.17492816]
[1760299363805,1.42795766,115000.0,114990.0,0.17592816]
[1760299364030,1.42795766,115000.0,114990.0,0.17492816]
[1760299364259,1.34219766,115000.0,114990.0,0.26345768]
[1760299364682,1.00219766,115000.0,114990.0,0.26445768]
[1760299365174,1.00219766,115000.0,114990.0,0.26345768]
[1760299365405,1.00219766,115000.0,114990.0,0.26445768]
[1760299365848,1.00219766,115000.0,114990.0,0.26345768]
[1760299366015,1.00219766,115000.0,114990.0,0.26545768]
[1760299366430,1.45475766,115000.0,114990.0,0.17592816]
[1760299366781,2.59991578,115000.0,114990.0,0.002]
[1760299366978,0.34,114970.0,114960.0,0.03064]
[1760299367202,0.91023939,114970.0,114960.0,0.03064]
[1760299367433,6.17234217,114970.0,114960.0,0.03064]
[1760299368645,5.99838375,114970.0,114960.0,0.03064]
[1760299368893,6.17234217,114970.0,114960.0,0.03064]
[1760299369648,5.62875278,114970.0,114960.0,0.03064]
[1760299369861,5.45479436,114970.0,114960.0,0.03064]
[1760299370076,5.99838375,114970.0,114960.0,0.03064]
[1760299370290,6.26106151,114970.0,114960.0,0.03064]
[1760299372849,6.29121341,114970.0,114960.0,0.03064]
[1760299373051,6.29928727,114970.0,114960.0,0.03064]
[1760299373212,6.29928727,114970.0,114940.0,0.04184]
[1760299373213,5.51398869,114950.0,114940.0,0.04184]
[1760299373411,1.62781747,114950.0,114940.0,0.04184]
[1760299373617,6.75341419,114950.0,114940.0,0.04184]
[1760299373973,6.80356419,114950.0,114940.0,0.04184]
[1760299374180,6.83371609,114950.0,114940.0,0.04184]
[1760299374357,6.83371609,114950.0,114940.0,0.04284]
[1760299374564,6.8604183,114950.0,114940.0,0.04284]
[1760299374876,6.98541828,114950.0,114940.0,0.04284]
[1760299375014,6.96679768,114950.0,114940.0,0.04284]
[1760299375237,2.00869963,114950.0,114940.0,0.04284]
[1760299375444,6.90869964,114950.0,114940.0,0.04384]
[1760299375678,7.00869963,114950.0,114940.0,0.04284]
[1760299376014,5.83935088,114950.0,114940.0,0.04284]
[1760299376245,5.51253398,114950.0,114940.0,0.04184]
[1760299376436,6.20340736,114950.0,114940.0,0.04184]
[1760299376595,6.20440736,114950.0,114940.0,0.04184]
[1760299376786,6.20240736,114950.0,114940.0,0.04184]
[1760299376981,6.27324404,114950.0,114940.0,0.04184]
[1760299377391,6.27524404,114950.0,114940.0,0.04184]
[1760299377608,1.78868153,114950.0,114940.0,0.04184]
[1760299377803,6.83543725,114950.0,114940.0,0.04184]
[1760299378002,6.83643725,114950.0,114940.0,0.04184]
[1760299378226,1.83443725,114950.0,114940.0,0.04184]
[1760299378426,6.83443725,114950.0,114940.0,0.04184]
[1760299378862,1.83543725,114950.0,114940.0,0.04184]
[1760299379022,6.83543725,114950.0,114940.0,0.04184]
[1760299379223,6.83443725,114950.0,114940.0,0.04184]
[1760299379457,6.83343725,114950.0,114940.0,0.04184]
[1760299379619,6.83543725,114950.0,114940.0,0.04184]
[1760299380250,1.83543725,114950.0,114940.0,0.04184]
[1760299380409,6.27324404,114950.0,114940.0,0.04184]
[1760299380608,5.72965465,114950.0,114940.0,0.04184]
[1760299380809,6.27324404,114950.0,114940.0,0.04184]
[1760299381005,6.81683343,114950.0,114940.0,0.04184]
[1760299381583,6.81483343,114950.0,114940.0,0.04184]
[1760299381792,6.81583343,114950.0,114940.0,0.04184]
[1760299381932,1.81583343,114950.0,114940.0,0.04184]
[1760299382146,6.81483343,114950.0,114940.0,0.04184]
[1760299382342,6.81583343,114950.0,114940.0,0.04184]
[1760299382550,6.81683343,114950.0,114940.0,0.04184]
[1760299382960,6.81583343,114950.0,114940.0,0.04184]
[1760299383379,6.81683343,114950.0,114940.0,0.04184]
[1760299383648,6.53429658,114950.0,114910.0,0.00148391]
[1760299383883,6.53429658,114950.0,114890.0,0.01913]
[1760299383884,0.5140644,114900.0,114890.0,0.01913]
[1760299384098,6.38278149,114900.0,114890.0,0.01913]
[1760299384267,6.46407149,114900.0,114890.0,0.01913]
[1760299384500,0.17409494,114880.0,114870.0,0.0418]
[1760299384700,0.86844875,114880.0,114870.0,0.04229473]
[1760299385439,1.04254345,114880.0,114870.0,0.04229473]
[1760299386097,0.86844875,114880.0,114870.0,0.04229473]
[1760299386344,1.04354345,114880.0,114870.0,0.04229473]
[1760299386581,0.86944875,114880.0,114870.0,0.04229473]
[1760299387663,0.86844875,114880.0,114870.0,0.04229473]
[1760299387986,0.10738,114880.0,114870.0,0.04229473]
[1760299388188,0.05922,114880.0,114870.0,0.21640459]
[1760299389184,0.14793934,114880.0,114870.0,0.21640459]
[1760299389390,0.19609934,114880.0,114870.0,0.04229473]
[1760299389594,0.95716809,114880.0,114870.0,0.0445313]
[1760299390001,6.16141469,114880.0,114870.0,0.0445313]
[1760299390424,1.50141469,114880.0,114870.0,0.0445313]
[1760299390644,6.50141469,114880.0,114870.0,0.0445313]
[1760299390887,6.52641468,114880.0,114870.0,1.3e-06]
[1760299391726,6.64598446,114880.0,114870.0,1.3e-06]
[1760299392074,6.64698446,114880.0,114870.0,1.3e-06]
[1760299392275,6.67065011,114880.0,114870.0,1.3e-06]
[1760299392677,1.67065011,114880.0,114870.0,1.3e-06]
[1760299392899,6.64698446,114880.0,114870.0,1.3e-06]
[1760299393100,6.69292897,114880.0,114870.0,1.3e-06]
[1760299393295,6.69392897,114880.0,114870.0,1.3e-06]
[1760299393747,6.67065011,114880.0,114870.0,1.3e-06]
[1760299393891,6.66965011,114880.0,114870.0,1.3e-06]
[1760299394096,0.34,114830.0,114820.0,0.04184]
[1760299394302,0.34,114830.0,114820.0,0.04198836]
[1760299394303,6.12519875,114830.0,114820.0,0.04198836]
[1760299394509,6.43509089,114830.0,114820.0,0.02286209]
[1760299394926,6.46524279,114830.0,114820.0,0.02286209]
[1760299395817,1.46524279,114830.0,114820.0,0.02286209]
[1760299395985,6.46524279,114830.0,114820.0,0.02286209]
[1760299396853,0.44642,114830.0,114820.0,0.02286209]
[1760299397055,0.001,114830.0,114820.0,0.30635777]
[1760299397631,0.002,114830.0,114820.0,0.30635777]
[1760299397900,0.001,114830.0,114820.0,0.30635777]
[1760299398641,0.36609,114850.0,114840.0,0.17415534]
[1760299398885,0.48793934,114850.0,114840.0,0.17415534]
[1760299399093,1.24900809,114850.0,114840.0,0.17415534]
[1760299399521,1.24900809,114850.0,114830.0,0.19818837]
[1760299399697,1.29716809,114850.0,114830.0,0.19818837]
[1760299399876,1.29816809,114850.0,114830.0,0.19818837]
[1760299400061,0.53709934,114850.0,114830.0,0.19818837]
[1760299400462,0.44838,114850.0,114830.0,0.19818837]
[1760299400671,0.34,114830.0,114820.0,0.02286209]
[1760299400871,0.36609,114830.0,114820.0,0.19704777]
[1760299401057,0.39922,114830.0,114820.0,0.02286209]
[1760299401260,0.44738,114830.0,114820.0,0.02286209]
[1760299401469,0.53609934,114830.0,114820.0,0.02286209]
[1760299401930,1.4713386,114830.0,114820.0,0.02286209]
[1760299402135,1.5014905,114830.0,114820.0,0.02286209]
[1760299402564,6.5014905,114830.0,114820.0,0.02286209]
[1760299402957,1.5014905,114830.0,114820.0,0.02286209]
[1760299403165,6.5014905,114830.0,114820.0,0.02286209]
[1760299404384,5.39922,114830.0,114820.0,0.19704777]
[1760299404721,0.34,114830.0,114820.0,0.04689209]
[1760299404873,0.36609,114830.0,114820.0,0.22107777]
[1760299406560,0.02609,114830.0,114820.0,0.22107777]
[1760299406897,0.02609,114830.0,114820.0,0.22387518]
[1760299407104,0.02609,114830.0,114820.0,0.25679518]
[1760299407441,0.0587,114830.0,114820.0,0.22387518]
[1760299408624,0.02557,114830.0,114820.0,0.22387518]
[1760299410249,0.05813,114830.0,114820.0,0.22387518]
[1760299411042,0.14684934,114830.0,114820.0,0.22387518]
[1760299411241,0.14684934,114830.0,114820.0,0.19984518]
[1760299412377,0.01871614,114840.0,114820.0,0.30617518]
[1760299412532,6.43359002,114830.0,114820.0,0.02286209]
[1760299412742,6.50746436,114830.0,114820.0,0.02286209]
[1760299412937,6.50746436,114830.0,114790.0,0.04184]
[1760299412938,5.20436792,114800.0,114790.0,0.04184]
[1760299413159,6.00179217,114800.0,114790.0,0.04198845]
[1760299413362,6.19471556,114800.0,114790.0,0.04198845]
[1760299413580,6.22193372,114800.0,114790.0,0.04198845]
[1760299413777,6.56193372,114800.0,114790.0,0.04198845]
[1760299413980,1.56193372,114800.0,114790.0,0.04198845]
[1760299414147,6.56193372,114800.0,114790.0,0.04198845]
[1760299415445,1.56293372,114800.0,114790.0,0.04198845]
[1760299415878,6.56293372,114800.0,114790.0,0.04198845]
[1760299416549,1.56393372,114800.0,114790.0,0.04198845]
[1760299416769,6.56393372,114800.0,114790.0,0.04198845]
[1760299417263,1.56393372,114800.0,114790.0,0.04198845]
[1760299417412,6.61139202,114800.0,114790.0,0.04198845]
[1760299417612,6.59513178,114800.0,114790.0,0.04198845]
[1760299417848,6.57173507,114800.0,114790.0,0.04198845]
[1760299418059,1.57173507,114800.0,114790.0,0.04198845]
[1760299418214,6.59512303,114800.0,114790.0,0.04646548]
[1760299418562,6.57173507,114800.0,114790.0,0.04646548]
[1760299418761,6.58043848,114800.0,114790.0,0.04646548]
[1760299419615,1.58043848,114800.0,114790.0,0.04646548]
[1760299419820,6.58043848,114800.0,114790.0,0.04646548]
[1760299420207,1.58043848,114800.0,114790.0,0.04646548]
[1760299420711,6.60383363,114800.0,114790.0,0.04646548]
[1760299420918,1.60383363,114800.0,114790.0,0.04646548]
[1760299421140,5.69562198,114800.0,114790.0,0.04646548]
[1760299421335,6.43329558,114800.0,114790.0,0.04646548]
[1760299421823,6.48390889,114800.0,114790.0,0.04646548]
[1760299422082,1.48390889,114800.0,114790.0,0.04646548]
[1760299422291,6.48390889,114800.0,114790.0,0.04646548]
[1760299422508,6.57262823,114800.0,114790.0,0.04646548]
[1760299422714,1.57262823,114800.0,114790.0,0.04646548]
[1760299422916,6.57262823,114800.0,114790.0,0.04646548]
[1760299423846,6.57262823,114800.0,114790.0,0.54646548]
[1760299425224,6.54923308,114800.0,114790.0,0.54646548]
[1760299426059,6.57262823,114800.0,114790.0,0.54646548]
[1760299427286,6.54923308,114800.0,114790.0,0.54646548]
[1760299427491,5.78816433,114800.0,114790.0,0.54646548]
[1760299427696,6.52201492,114800.0,114790.0,0.54646548]
[1760299428414,5.76094617,114800.0,114790.0,0.54646548]
[1760299428615,6.52101492,114800.0,114790.0,0.54646548]
[1760299429828,6.64163634,114800.0,114790.0,0.54646548]
[1760299430028,6.57832719,114800.0,114790.0,0.54646548]
[1760299430234,6.62538981,114800.0,114790.0,0.54646548]
[1760299430438,6.57832719,114800.0,114790.0,0.54646548]
[1760299430640,6.60272224,114800.0,114790.0,0.54646548]
[1760299430823,5.84165349,114800.0,114790.0,0.54646548]
[1760299431026,6.60272224,114800.0,114790.0,0.54646548]
[1760299431214,1.60272224,114800.0,114790.0,0.54646548]
[1760299431435,6.60272224,114800.0,114790.0,0.54646548]
[1760299431858,6.60372224,114800.0,114790.0,0.54646548]
[1760299432833,0.84265349,114800.0,114790.0,0.54646548]
[1760299433029,6.57661537,114800.0,114790.0,0.54646548]
[1760299433481,1.43329558,114800.0,114790.0,0.54646548]
[1760299436830,0.67222683,114800.0,114790.0,0.54646548]
[1760299437039,0.41961891,114800.0,114790.0,0.72069668]
[1760299437251,0.40090341,114800.0,114790.0,0.54646548]
[1760299438313,0.57511943,114800.0,114790.0,0.54646548]
[1760299438646,0.59383493,114800.0,114790.0,0.54646548]
[1760299439006,0.41961891,114800.0,114790.0,0.75573668]
[1760299439203,0.002,114800.0,114790.0,0.83178668]
[1760299439936,0.001,114800.0,114790.0,0.83178668]
[1760299440367,0.3763555,114830.0,114810.0,0.17418568]
[1760299440533,0.45179178,114830.0,114820.0,0.20832568]
[1760299440734,0.14581178,114830.0,114820.0,0.20832568]
[1760299441069,0.48581178,114830.0,114820.0,0.20832568]
[1760299441273,0.50920683,114830.0,114820.0,0.20832568]
[1760299441479,0.3587155,114830.0,114820.0,0.05793]
[1760299441711,0.39166,114830.0,114820.0,0.05793]
[1760299441910,0.39166,114830.0,114820.0,0.23211568]
[1760299442069,0.34,114830.0,114820.0,0.28372568]
[1760299442459,0.34,114830.0,114820.0,0.23211568]
[1760299443026,0.0187155,114840.0,114830.0,0.17417051]
[1760299443231,0.57118262,114860.0,114850.0,0.17414018]
[1760299443232,0.04211055,114860.0,114850.0,0.17414018]
[1760299443440,0.04211055,114860.0,114850.0,0.28368018]
[1760299443441,5.0,114860.0,114850.0,0.28368018]
[1760299443641,0.0187155,114860.0,114850.0,0.28368018]
[1760299443790,5.0,114870.0,114860.0,0.17412502]
[1760299443990,5.0,114870.0,114860.0,0.32550502]
[1760299444217,5.0,114870.0,114860.0,0.32350502]
[1760299444415,5.34,114870.0,114860.0,0.32350502]
[1760299444744,5.0,114870.0,114860.0,0.32350502]
[1760299445420,5.34,114870.0,114860.0,0.32350502]
[1760299445624,0.34,114870.0,114860.0,0.32350502]
[1760299445826,5.0,114870.0,114860.0,0.32350502]
[1760299446231,5.34,114870.0,114860.0,0.32406431]
[1760299446396,0.34,114870.0,114860.0,0.27345431]
[1760299446625,0.34,114870.0,114860.0,0.32506431]
[1760299446841,0.34,114870.0,114860.0,0.32606431]
[1760299449869,0.34,114870.0,114860.0,0.27445431]
[1760299450070,0.34,114870.0,114860.0,0.32606431]
[1760299450993,0.34,114870.0,114860.0,0.31560542]
[1760299451651,0.00148449,114890.0,114880.0,0.1740947]
[1760299451892,0.00148449,114890.0,114880.0,0.2836347]
[1760299451893,0.00197861,114890.0,114880.0,0.2836347]
[1760299453012,0.34,114870.0,114860.0,0.04239929]
[1760299453233,0.34,114870.0,114860.0,0.10032929]
[1760299453455,0.34,114870.0,114860.0,0.04239929]
[1760299453456,1.1841365,114870.0,114860.0,0.04239929]
[1760299453702,1.16141276,114870.0,114860.0,0.04239929]
[1760299454330,1.16141276,114870.0,114860.0,0.04339929]
[1760299455734,1.16141276,114870.0,114860.0,0.04439929]
[1760299455935,1.16141276,114870.0,114860.0,0.04239929]
[1760299456308,1.2501321,114870.0,114860.0,0.04239929]
[1760299458274,1.280284,114870.0,114860.0,0.04239929]
[1760299458546,6.280284,114870.0,114860.0,0.04239929]
[1760299459511,1.282284,114870.0,114860.0,0.04239929]
[1760299459715,6.282284,114870.0,114860.0,0.04239929]
[1760299460127,0.56776986,114870.0,114860.0,0.04239929]
[1760299460333,1.11121276,114870.0,114860.0,0.04239929]
[1760299461150,1.16341276,114870.0,114860.0,0.04239929]
[1760299461553,1.16341276,114870.0,114860.0,0.14239929]
[1760299461761,6.16241276,114870.0,114860.0,0.14239929]
[1760299461955,6.2501321,114870.0,114860.0,0.14239929]
[1760299462488,6.280284,114870.0,114860.0,0.14239929]
[1760299462680,6.30704349,114870.0,114860.0,0.14239929]
[1760299462990,1.30704349,114870.0,114860.0,0.14239929]
[1760299463193,6.29894322,114870.0,114860.0,0.14239929]
[1760299463517,1.30704473,114870.0,114860.0,0.14239929]
[1760299463649,6.30904473,114870.0,114860.0,0.14239929]
[1760299464213,1.30904473,114870.0,114860.0,0.14239929]
[1760299464861,6.30804473,114870.0,114860.0,0.14239929]
[1760299464997,6.30704473,114870.0,114860.0,0.14239929]
[1760299465196,6.30804473,114870.0,114860.0,0.14239929]
[1760299465396,6.30904473,114870.0,114860.0,0.14239929]
[1760299466270,6.33243978,114870.0,114860.0,0.14239929]
[1760299467419,1.33243978,114870.0,114860.0,0.14239929]
[1760299467671,6.33243978,114870.0,114860.0,0.14239929]
[1760299467921,6.30228788,114870.0,114860.0,0.14239929]
[1760299468226,1.3023154,114870.0,114860.0,0.14239929]
[1760299468423,6.3023154,114870.0,114860.0,0.14239929]
[1760299468939,1.3023154,114870.0,114860.0,0.14239929]
[1760299469146,6.3335208,114870.0,114860.0,0.14239929]
[1760299469963,0.4438433,114870.0,114860.0,0.35019431]
[1760299470197,0.4438433,114870.0,114860.0,0.37383431]
[1760299470198,0.42044825,114870.0,114860.0,0.37383431]
[1760299470399,0.01012903,114870.0,114860.0,0.42217431]
[1760299470597,0.002,114870.0,114860.0,0.42217431]
[1760299471009,0.34,114880.0,114870.0,0.17410986]
[1760299471214,0.00813979,114880.0,114870.0,0.27975986]
[1760299471597,0.06410979,114880.0,114870.0,0.23141986]
[1760299471946,0.94755269,114880.0,114870.0,0.23141986]
[1760299473578,1.08679203,114880.0,114870.0,0.17410986]
[1760299473906,0.49282913,114880.0,114870.0,0.17410986]
[1760299474114,0.03217979,114880.0,114870.0,0.23141986]
[1760299474330,0.06410979,114880.0,114870.0,0.23141986]
[1760299475824,0.06410979,114880.0,114870.0,0.19774986]
[1760299476608,0.60755269,114880.0,114870.0,0.19774986]
[1760299476785,0.57562269,114880.0,114870.0,0.23141986]
[1760299477002,0.60755269,114880.0,114870.0,0.23141986]
[1760299477181,0.06410979,114880.0,114870.0,0.23141986]
[1760299477708,0.06410979,114880.0,114870.0,0.19774986]
[1760299477908,5.34,114870.0,114860.0,0.14239929]
[1760299478105,0.93957269,114870.0,114860.0,0.31652431]
[1760299478325,0.99009269,114870.0,114860.0,0.31652431]
[1760299479555,1.16420255,114870.0,114860.0,0.14239929]
[1760299479703,1.18295944,114870.0,114860.0,0.14239929]
[1760299480114,1.23652843,114870.0,114860.0,0.14239929]
[1760299480801,1.23652843,114870.0,114860.0,0.21285384]
[1760299480998,6.25992348,114870.0,114860.0,0.21285384]
[1760299481419,6.28668694,114870.0,114860.0,0.21285384]
[1760299483266,6.25992887,114870.0,114860.0,0.21285384]
[1760299484549,6.18296483,114870.0,114860.0,0.21285384]
[1760299485568,0.63952193,114870.0,114860.0,0.21285384]
[1760299485876,1.18296483,114870.0,114860.0,0.21285384]
[1760299486080,0.63952193,114870.0,114860.0,0.21285384]
[1760299486268,1.18296483,114870.0,114860.0,0.21285384]
[1760299486612,1.25170929,114870.0,114860.0,0.21285384]
[1760299486821,0.46541207,114870.0,114860.0,0.38697886]
[1760299486975,0.41489207,114870.0,114860.0,0.41837886]
[1760299487178,0.39613518,114870.0,114860.0,0.44363886]
[1760299487704,1.16449794,114870.0,114860.0,0.21285384]
[1760299487927,1.18325483,114870.0,114860.0,0.21285384]
[1760299488270,1.27197417,114870.0,114860.0,0.21285384]
[1760299488704,1.18325483,114870.0,114860.0,0.21285384]
[1760299490656,0.95833497,114870.0,114860.0,0.38697886]
[1760299490850,1.00914497,114870.0,114860.0,0.21285384]
[1760299491079,1.00914497,114870.0,114860.0,0.44363886]
[1760299491080,0.03481689,114870.0,114860.0,0.44363886]
[1760299491215,0.01606,114870.0,114860.0,0.49156886]
[1760299491421,0.38280553,114880.0,114870.0,0.17410986]
[1760299491625,0.9388029,114880.0,114870.0,0.20550986]
[1760299492668,0.9074829,114880.0,114870.0,0.23076986]
[1760299492876,0.9388029,114880.0,114870.0,0.17410986]
[1760299493015,1.07833224,114880.0,114860.0,0.38697886]
[1760299493219,0.01509,114870.0,114860.0,0.38697886]
[1760299493549,0.04641,114870.0,114860.0,0.38697886]
[1760299493763,0.5898529,114870.0,114860.0,0.38697886]
[1760299493934,0.6406629,114870.0,114860.0,0.38697886]
[1760299494353,0.81477276,114870.0,114860.0,0.21285384]
[1760299494778,0.81477276,114870.0,114860.0,0.21385384]
[1760299494985,0.81477276,114870.0,114860.0,0.21285384]
[1760299495938,1.15477276,114870.0,114860.0,0.38697886]
[1760299496131,0.9806629,114870.0,114860.0,0.38797886]
[1760299496387,1.15477276,114870.0,114860.0,0.21385384]
[1760299496571,1.15477276,114870.0,114860.0,0.21285384]
[1760299496888,0.9298529,114870.0,114860.0,0.38697886]
[1760299497148,0.38641,114870.0,114860.0,0.41837886]
[1760299497348,0.38641,114870.0,114860.0,0.44363886]
[1760299497662,0.35509,114870.0,114860.0,0.49156886]
[1760299497895,0.35509,114870.0,114860.0,0.44363886]
[1760299498031,0.38641,114870.0,114860.0,0.41223886]
[1760299498385,0.38641,114870.0,114860.0,0.38697886]
[1760299499539,0.38641,114870.0,114860.0,0.44440886]
[1760299499766,0.38641,114870.0,114860.0,0.38797886]
[1760299499975,0.38641,114870.0,114860.0,0.41968886]
[1760299500258,0.01813412,114890.0,114880.0,0.1740947]
[1760299500433,0.00049412,114890.0,114880.0,0.2772247]
[1760299500990,0.00049412,114890.0,114880.0,0.36675422]
[1760299501189,0.58447795,114930.0,114920.0,0.17403411]
[1760299501190,0.01764,114930.0,114920.0,0.17403411]
[1760299501388,0.07177184,114930.0,114920.0,0.27716411]
[1760299501791,0.00014822,114930.0,114920.0,0.27716411]
[1760299502020,0.00014822,114930.0,114920.0,0.23077411]
[1760299502223,0.00014822,114930.0,114920.0,0.27716411]
[1760299503434,0.00014822,114930.0,114920.0,0.23077411]
[1760299503732,0.04994822,114930.0,114920.0,0.17403411]
[1760299503936,0.59339112,114930.0,114920.0,0.17403411]
[1760299504122,0.04994822,114930.0,114920.0,0.20574411]
[1760299504374,0.04994822,114930.0,114920.0,0.17403411]
[1760299505402,0.04994822,114930.0,114920.0,0.27716411]
[1760299505403,0.00014822,114930.0,114920.0,0.27716411]
[1760299505583,0.00014822,114930.0,114920.0,0.23077411]
[1760299505584,0.04994822,114930.0,114920.0,0.23077411]
[1760299505903,0.04994822,114930.0,114920.0,0.17403411]
[1760299506555,0.51403411,114920.0,114900.0,0.19909346]
[1760299506760,0.40502,114920.0,114900.0,0.19909346]
[1760299506956,0.01616,114910.0,114900.0,0.19909346]
[1760299507076,0.01616,114910.0,114900.0,0.23080346]
[1760299507641,0.35616,114920.0,114910.0,0.17404925]
[1760299507883,0.56235411,114920.0,114910.0,0.02503]
[1760299508059,0.56235411,114920.0,114900.0,0.24548346]
[1760299508312,0.61121411,114920.0,114900.0,0.19909346]
[1760299508481,0.38832,114920.0,114910.0,0.17404925]
[1760299508733,0.38832,114920.0,114910.0,0.23078925]
[1760299508947,0.56235411,114920.0,114910.0,0.05674]
[1760299509146,0.56235411,114920.0,114900.0,0.19909346]
[1760299509293,0.61121411,114920.0,114900.0,0.19909346]
[1760299510143,0.19020925,114910.0,114890.0,0.25417758]
[1760299510372,0.19020925,114910.0,114900.0,0.1740644]
[1760299510373,0.40502,114910.0,114900.0,0.1740644]
[1760299510684,0.38832,114910.0,114900.0,0.1740644]
[1760299511002,0.38832,114910.0,114900.0,0.2057744]
[1760299511687,0.38832,114910.0,114900.0,0.3057744]
[1760299512517,0.56236925,114910.0,114900.0,0.1]
[1760299512716,0.38832,114910.0,114900.0,0.2740644]
[1760299512876,0.56236925,114910.0,114900.0,0.1]
[1760299513642,0.61122925,114910.0,114900.0,0.1]
[1760299515033,0.61122925,114910.0,114900.0,0.2740644]
[1760299515247,0.61122925,114910.0,114900.0,0.1]
[1760299516526,1.46041409,114910.0,114900.0,0.1]
[1760299517380,0.61122925,114910.0,114900.0,0.1]
[1760299517617,1.37169475,114910.0,114900.0,0.1]
[1760299518739,1.37169475,114910.0,114900.0,0.14184]
[1760299521294,6.37169475,114910.0,114900.0,0.14184]
[1760299521706,6.37981845,114910.0,114900.0,0.14184]
[1760299521929,6.46853779,114910.0,114900.0,0.14184]
[1760299522742,6.37169475,114910.0,114900.0,0.14184]
[1760299523879,5.61122925,114910.0,114900.0,0.14184]
[1760299524164,6.37169475,114910.0,114900.0,0.14184]
[1760299527558,5.38832,114910.0,114900.0,0.14184]
[1760299527783,0.01616,114920.0,114910.0,0.17404925]
[1760299527980,0.01778822,114930.0,114920.0,0.17403411]
[1760299528182,0.40664822,114930.0,114920.0,0.17403411]
[1760299528433,0.44694294,114930.0,114920.0,0.17403411]
[1760299528798,0.44694569,114930.0,114920.0,0.17403411]
[1760299529491,0.62096465,114930.0,114920.0,0.17403411]
[1760299530081,0.44694569,114930.0,114920.0,0.17403411]
[1760299531808,0.44694971,114930.0,114920.0,0.17403411]
[1760299533323,0.63973405,114930.0,114920.0,0.17403411]
[1760299533747,0.46571509,114930.0,114920.0,0.17403411]
[1760299534543,0.63973405,114930.0,114920.0,0.17403411]
[1760299534747,0.72845339,114930.0,114920.0,0.17403411]
[1760299535171,0.63973405,114930.0,114920.0,0.17403411]
[1760299536493,1.40019955,114930.0,114910.0,0.19907925]
[1760299536693,0.40237,114920.0,114910.0,0.17404925]
[1760299536895,0.41051149,114920.0,114910.0,0.17404925]
[1760299537092,1.3776011,114920.0,114900.0,0.14184]
[1760299537485,6.1645055,114910.0,114900.0,0.14184]
[1760299537681,5.39689149,114910.0,114900.0,0.3159044]
[1760299537952,0.44477149,114910.0,114900.0,0.2159044]
[1760299538524,0.61882074,114910.0,114900.0,0.2159044]
[1760299539043,0.44477149,114910.0,114900.0,0.2159044]
[1760299539247,1.22401118,114910.0,114900.0,0.2159044]
[1760299539429,1.39806043,114910.0,114900.0,0.2159044]
[1760299539852,1.22401118,114910.0,114900.0,0.2159044]
[1760299540262,1.22401132,114910.0,114900.0,0.2159044]
[1760299540475,1.20523699,114910.0,114900.0,0.2159044]
[1760299540622,0.44477149,114910.0,114900.0,0.2159044]
[1760299541290,0.61882074,114910.0,114900.0,0.04184]
[1760299541686,6.42152034,114910.0,114900.0,0.04184]
[1760299541877,6.42152034,114910.0,114900.0,0.2159044]
[1760299542240,6.39806061,114910.0,114900.0,0.04184]
[1760299542486,6.39806061,114910.0,114900.0,0.2159044]
[1760299542882,6.39806061,114910.0,114900.0,0.04184]
[1760299543818,1.39806061,114910.0,114900.0,0.04184]
[1760299544133,6.42145566,114910.0,114900.0,0.04184]
[1760299544319,6.510175,114910.0,114900.0,0.04184]
[1760299545217,6.511175,114910.0,114900.0,0.04184]
[1760299545763,6.512175,114910.0,114900.0,0.04184]
[1760299545931,6.5385841,114910.0,114900.0,0.04184]
[1760299546140,5.7781186,114910.0,114900.0,0.04184]
[1760299546318,6.51518905,114910.0,114900.0,0.04184]
[1760299547861,6.568736,114910.0,114900.0,0.04184]
[1760299548062,6.76490117,114910.0,114900.0,0.04184]
[1760299548262,6.75342288,114910.0,114900.0,0.04184]
[1760299549324,6.78468244,114910.0,114900.0,0.04184]
[1760299549520,1.78468244,114910.0,114900.0,0.04184]